bitfinex/quotes_BTCUSD_20220120
["timestamp","ask_amount","ask_price","bid_price","bid_amount"]
[1642697368346,6.877e-05,43218.0,43216.0,0.34782746]
[1642697368545,6.877e-05,43218.0,43217.0,0.00772312]
[1642697368746,6.877e-05,43218.0,43216.0,0.342676]
[1642697368947,6.877e-05,43218.0,43217.0,0.00752636]
[1642697369147,6.877e-05,43218.0,43216.0,0.342676]
[1642697369650,0.00114887,43224.0,43218.0,1.20013753]
[1642697369852,0.00114887,43224.0,43223.0,1.257832]
[1642697370050,2.0554,43238.0,43223.0,1.612855]
[1642697370051,2.05665646,43238.0,43223.0,1.612855]
[1642697370249,2.05665646,43238.0,43224.0,0.29306043]
[1642697370502,2.05665646,43238.0,43229.0,0.24429937]
[1642697370503,0.21477403,43234.0,43229.0,0.24429937]
[1642697370700,0.057833,43233.0,43229.0,0.24429937]
[1642697370897,0.057833,43233.0,43229.0,0.29429937]
[1642697370898,0.05809085,43233.0,43229.0,0.29429937]
[1642697371099,0.00024066,43232.0,43229.0,0.05]
[1642697371496,0.00022347,43231.0,43224.0,0.3681523]
[1642697371698,0.00022347,43231.0,43225.0,0.255002]
[1642697371896,0.00020628,43230.0,43225.0,0.255002]
[1642697372098,0.27403091,43229.0,43225.0,0.255002]
[1642697372296,0.15902,43229.0,43225.0,0.255002]
[1642697372498,0.0001719,43228.0,43225.0,0.255002]
[1642697372901,0.00015471,43227.0,43222.0,0.5504]
[1642697373099,0.21091348,43227.0,43223.0,0.255019]
[1642697373307,0.21091348,43227.0,43218.0,0.42013753]
[1642697373308,0.00123001,43219.0,43218.0,0.42013753]
[1642697373499,0.00123001,43219.0,43218.0,0.00034584]
[1642697373700,0.00123001,43219.0,43218.0,0.00013753]
[1642697375960,0.057857,43220.0,43218.0,0.00013753]
[1642697377159,0.81487181,43219.0,43218.0,0.00013753]
[1642697377458,0.86487181,43219.0,43218.0,0.00013753]
[1642697377898,1.36611253,43219.0,43218.0,0.00013753]
[1642697379297,1.74376453,43219.0,43218.0,0.00013753]
[1642697379496,1.2,43218.0,43216.0,0.00010384]
[1642697379697,0.30061241,43217.0,43214.0,0.00010384]
[1642697379896,0.35847841,43217.0,43215.0,0.0011895]
[1642697380098,0.2965375,43216.0,43215.0,0.0011895]
[1642697380299,0.3465375,43216.0,43215.0,0.0011895]
[1642697380698,0.05,43216.0,43214.0,0.00010384]
[1642697380897,0.05,43216.0,43213.0,0.0011]
[1642697380898,0.107859,43216.0,43213.0,0.00239334]
[1642697381201,0.24499399,43215.0,43214.0,6.877e-05]
[1642697381398,0.24499399,43215.0,43214.0,0.00017261]
[1642697381642,0.24499399,43215.0,43214.0,6.877e-05]
[1642697381845,0.24499399,43215.0,43214.0,0.00017261]
[1642697382044,0.54499399,43215.0,43214.0,6.877e-05]
[1642697382244,0.54499399,43215.0,43214.0,0.00017261]
[1642697382445,0.54499399,43215.0,43214.0,6.877e-05]
[1642697382644,0.54499399,43215.0,43214.0,0.00017261]
[1642697382844,0.54499399,43215.0,43214.0,6.877e-05]
[1642697383046,0.107859,43216.0,43214.0,0.00017261]
[1642697383247,0.057859,43216.0,43214.0,6.877e-05]
[1642697383445,0.057859,43216.0,43214.0,0.00017261]
[1642697383644,0.057859,43216.0,43214.0,6.877e-05]
[1642697383848,0.057859,43216.0,43214.0,0.00017261]
[1642697384044,0.057859,43216.0,43215.0,0.00652175]
[1642697384246,0.057859,43216.0,43214.0,0.00017261]
[1642697384545,0.057859,43216.0,43214.0,6.877e-05]
[1642697384746,0.057859,43216.0,43214.0,0.00017261]
[1642697387293,0.32364776,43216.0,43214.0,0.00017261]
[1642697387494,0.057859,43216.0,43214.0,0.00017261]
[1642697387895,0.75,43215.0,43214.0,0.00017261]
[1642697388894,1.01872062,43215.0,43214.0,0.00017261]
[1642697389156,0.26872062,43215.0,43209.0,0.05304671]
[1642697389350,0.057867,43214.0,43212.0,0.00118951]
[1642697389548,0.115734,43214.0,43212.0,0.00118951]
[1642697390347,0.115734,43214.0,43210.0,6.876e-05]
[1642697390547,0.24489815,43213.0,43211.0,0.00118954]
[1642697390949,0.115724,43217.0,43211.0,0.00118954]
[1642697391348,0.05786,43218.0,43211.0,0.00118954]
[1642697391548,0.05786,43218.0,43204.0,0.64716309]
[1642697391752,0.05786,43218.0,43212.0,0.00084105]
[1642697391948,0.29510095,43217.0,43212.0,0.00084105]
[1642697392748,0.29510095,43217.0,43208.0,0.15]
[1642697392994,0.35296195,43217.0,43212.0,0.00118951]
[1642697393200,0.62029955,43217.0,43212.0,0.00118951]
[1642697393600,0.35296195,43217.0,43212.0,0.00118951]
[1642697393993,0.21451922,43218.0,43209.0,0.2816191]
[1642697394195,0.31858735,43220.0,43212.0,0.00118951]
[1642697394397,0.31858735,43220.0,43212.0,0.0068946]
[1642697394595,0.31858735,43220.0,43212.0,0.00118951]
[1642697394596,0.12,43218.0,43212.0,0.00118951]
[1642697394792,0.12,43218.0,43213.0,0.00691064]
[1642697394993,0.057859,43217.0,43212.0,0.0063882]
[1642697395196,0.30840514,43217.0,43212.0,0.00519869]
[1642697395392,0.30840514,43217.0,43213.0,0.00118951]
[1642697395794,0.35840514,43217.0,43213.0,0.00118951]
[1642697396394,0.35840514,43217.0,43210.0,0.00523539]
[1642697396676,0.62261541,43217.0,43213.0,0.00118951]
[1642697397277,0.68047841,43217.0,43213.0,0.00118951]
[1642697397675,0.68047841,43217.0,43209.0,0.0072898]
[1642697397676,0.68047841,43217.0,43210.0,0.00584711]
[1642697397875,0.68047841,43217.0,43213.0,0.00118951]
[1642697398877,0.63047841,43217.0,43210.0,0.00564107]
[1642697399079,0.68047841,43217.0,43213.0,0.00118951]
[1642697399582,0.63047841,43217.0,43213.0,0.00118951]
[1642697399782,0.057859,43217.0,43213.0,0.00118951]
[1642697399980,0.057859,43217.0,43213.0,0.00727364]
[1642697400180,0.057859,43217.0,43214.0,0.00717684]
[1642697400422,0.057859,43217.0,43213.0,0.00118951]
[1642697400622,0.30959554,43216.0,43213.0,0.00118951]
[1642697401222,0.35959554,43216.0,43209.0,0.00614777]
[1642697401422,0.35959554,43216.0,43212.0,0.00118951]
[1642697402127,0.05,43216.0,43212.0,0.00118951]
[1642697402323,0.05,43216.0,43210.0,0.00699358]
[1642697402524,0.057859,43217.0,43212.0,0.00118952]
[1642697402525,0.107859,43217.0,43212.0,0.00118952]
[1642697403125,0.107859,43217.0,43213.0,0.00668494]
[1642697403326,0.107859,43217.0,43213.0,0.00683511]
[1642697403526,0.107859,43217.0,43213.0,0.006925]
[1642697403726,0.107859,43217.0,43213.0,0.00772064]
[1642697403925,0.107859,43217.0,43212.0,0.00118951]
[1642697404167,0.107859,43217.0,43212.0,0.00129319]
[1642697404364,0.107859,43217.0,43212.0,0.00118951]
[1642697404564,0.223587,43217.0,43212.0,0.00118951]
[1642697404767,0.373587,43217.0,43213.0,0.00639206]
[1642697404963,0.373587,43217.0,43213.0,0.00118951]
[1642697405164,0.315722,43217.0,43213.0,0.00659524]
[1642697405463,0.315722,43217.0,43213.0,0.00625249]
[1642697405664,0.315722,43217.0,43213.0,0.00801234]
[1642697405864,0.315722,43217.0,43213.0,0.00118951]
[1642697406065,0.315722,43217.0,43209.0,0.00018963]
[1642697406266,0.315722,43217.0,43213.0,0.00118951]
[1642697406465,0.315722,43217.0,43213.0,0.00739091]
[1642697406665,0.315722,43217.0,43213.0,0.00836011]
[1642697406867,0.315722,43217.0,43213.0,0.00918533]
[1642697407066,0.315722,43217.0,43213.0,0.00878535]
[1642697407270,0.315722,43217.0,43209.0,0.00730895]
[1642697407468,0.315722,43217.0,43213.0,0.00118951]
[1642697408103,0.315722,43217.0,43213.0,0.00778259]
[1642697408303,0.315722,43217.0,43212.0,0.00010368]
[1642697408510,0.315722,43217.0,43213.0,0.00705207]
[1642697408703,0.2592415,43216.0,43213.0,0.00118951]
[1642697408904,0.00122016,43215.0,43213.0,0.00118951]
[1642697409604,0.00122016,43215.0,43209.0,0.00018963]
[1642697409605,0.057874,43214.0,43209.0,0.00018963]
[1642697409812,0.1963539,43213.0,43212.0,0.00118952]
[1642697410003,0.19642266,43213.0,43212.0,0.00118952]
[1642697410204,0.19642266,43213.0,43210.0,0.00010368]
[1642697410406,0.19642266,43213.0,43204.0,0.00475894]
[1642697410807,0.057868,43208.0,43205.0,6.876e-05]
[1642697411008,0.05,43207.0,43205.0,6.876e-05]
[1642697411207,0.05,43207.0,43204.0,0.00018963]
[1642697411406,0.05,43207.0,43204.0,8.595e-05]
[1642697411860,0.05,43207.0,43203.0,0.00010314]
[1642697412059,0.05,43207.0,43204.0,8.595e-05]
[1642697412257,0.05,43207.0,43203.0,0.00010314]
[1642697412462,0.05,43207.0,43204.0,8.595e-05]
[1642697412658,0.05,43207.0,43203.0,0.00010314]
[1642697412859,0.05,43207.0,43204.0,8.595e-05]
[1642697413060,0.66554717,43224.0,43204.0,1.2]
[1642697413361,0.00122492,43216.0,43205.0,0.00013752]
[1642697413561,0.00122492,43216.0,43209.0,0.05]
[1642697413760,0.115737,43210.0,43209.0,0.05]
[1642697414162,0.00122492,43216.0,43209.0,0.05006876]
[1642697414163,0.16995615,43212.0,43209.0,0.05006876]
[1642697414561,0.16995615,43212.0,43209.0,0.05]
[1642697414964,0.057868,43212.0,43209.0,0.05]
[1642697415402,0.057868,43211.0,43209.0,0.05]
[1642697415804,0.107868,43211.0,43209.0,0.05]
[1642697416004,0.107868,43211.0,43209.0,0.05010368]
[1642697417006,0.107868,43211.0,43209.0,0.05]
[1642697417205,0.107868,43211.0,43209.0,0.05010368]
[1642697418306,0.107868,43211.0,43209.0,0.05]
[1642697418505,0.107868,43211.0,43209.0,0.05010368]
[1642697419373,0.107868,43211.0,43209.0,0.05]
[1642697419575,0.107868,43211.0,43209.0,0.05010368]
[1642697420576,0.107868,43211.0,43209.0,0.05]
[1642697420778,0.107868,43211.0,43209.0,0.05010368]
[1642697421875,0.107868,43211.0,43209.0,0.05]
[1642697422077,0.107868,43211.0,43209.0,0.05010368]
[1642697423100,0.107868,43211.0,43209.0,0.05]
[1642697423301,0.107868,43211.0,43209.0,0.05010368]
[1642697424302,0.107868,43211.0,43209.0,0.05]
[1642697424500,0.107868,43211.0,43209.0,0.05010368]
[1642697424904,0.057868,43212.0,43209.0,0.056853]
[1642697425103,0.057861,43214.0,43210.0,0.25871737]
[1642697425312,0.00086067,43217.0,43211.0,0.00126145]
[1642697425313,6.877e-05,43217.0,43211.0,0.00126145]
[1642697425506,6.877e-05,43217.0,43216.0,1.25]
[1642697425507,0.00086067,43217.0,43216.0,1.25]
[1642697425704,0.00086067,43217.0,43216.0,1.55002224]
[1642697425906,0.00086067,43217.0,43216.0,1.75081445]
[1642697426305,0.00086067,43217.0,43216.0,2.0228855]
[1642697426657,6.877e-05,43217.0,43216.0,1.69297045]
[1642697429058,6.877e-05,43217.0,43216.0,1.59297045]
[1642697430061,6.877e-05,43217.0,43216.0,1.75089354]
[1642697431398,6.877e-05,43217.0,43216.0,3.17289354]
[1642697431798,6.877e-05,43217.0,43216.0,2.97289354]
[1642697432200,6.877e-05,43217.0,43216.0,1.75089354]
[1642697433502,6.877e-05,43217.0,43216.0,3.17289354]
[1642697434354,8.77e-06,43217.0,43216.0,3.17289354]
[1642697434555,0.000881,43219.0,43218.0,0.00125759]
[1642697434556,9.77e-06,43219.0,43218.0,0.00125759]
[1642697434757,0.5926,43241.0,43233.0,0.00129726]
[1642697434758,0.2806446,43236.0,43233.0,0.00129726]
[1642697434958,0.05,43236.0,43233.0,0.00137935]
[1642697435154,0.28396726,43240.0,43233.0,8.209e-05]
[1642697435155,0.00036099,43238.0,43233.0,8.209e-05]
[1642697435455,0.0003438,43237.0,43235.0,0.05]
[1642697435661,0.057831,43236.0,43235.0,0.05008209]
[1642697435853,0.05815761,43236.0,43235.0,0.05008209]
[1642697437661,0.00350316,43251.0,43236.0,1.2]
[1642697437921,0.00350316,43251.0,43250.0,0.00125627]
[1642697438118,0.00350316,43251.0,43250.0,1.33402627]
[1642697438321,0.00376101,43251.0,43250.0,1.38402627]
[1642697438518,0.00376101,43251.0,43250.0,2.11689668]
[1642697438519,0.00025785,43251.0,43250.0,2.11689668]
[1642697438820,0.00025785,43251.0,43250.0,1.84766154]
[1642697439020,0.00025785,43251.0,43250.0,1.94766154]
[1642697439418,0.00025785,43251.0,43250.0,2.00545654]
[1642697443657,0.00025785,43251.0,43250.0,2.26426482]
[1642697444458,0.00025785,43251.0,43250.0,2.00545654]
[1642697446013,0.00025785,43251.0,43250.0,2.25522626]
[1642697447006,0.00025785,43251.0,43250.0,2.00545654]
[1642697448408,0.00025785,43251.0,43250.0,1.99672392]
[1642697448809,0.00025785,43251.0,43250.0,2.25423333]
[1642697450450,0.00025785,43251.0,43250.0,2.75423333]
[1642697450654,0.00025785,43251.0,43250.0,2.49672392]
[1642697450851,0.00025785,43251.0,43250.0,3.71872392]
[1642697451751,0.00025785,43251.0,43250.0,4.0024722]
[1642697455802,0.00025785,43251.0,43250.0,4.2024722]
[1642697456657,0.00025785,43251.0,43250.0,3.91872392]
[1642697459561,0.00025785,43251.0,43250.0,3.93028392]
[1642697460819,0.00086735,43253.0,43252.0,2.622]
[1642697461118,0.001,43262.0,43254.0,1.479784]
[1642697461321,0.001,43262.0,43257.0,0.11680467]
[1642697461521,0.001,43262.0,43261.0,0.45]
[1642697461720,0.001,43262.0,43261.0,0.81659077]
[1642697461916,0.00118909,43262.0,43261.0,0.91659077]
[1642697462117,0.00118909,43262.0,43261.0,2.06659077]
[1642697462920,0.00118909,43262.0,43261.0,2.26659077]
[1642697463120,0.00118909,43262.0,43261.0,3.48859077]
[1642697463523,0.00118909,43262.0,43261.0,2.76659077]
[1642697463822,0.00118909,43262.0,43261.0,3.98859077]
[1642697464024,0.00118909,43262.0,43261.0,2.76659077]
[1642697464855,0.00118909,43262.0,43261.0,2.83859077]
[1642697465056,0.00118909,43262.0,43261.0,0.74084204]
[1642697465257,0.00118909,43262.0,43261.0,1.58746638]
[1642697465656,0.00118909,43262.0,43261.0,1.38746638]
[1642697465857,0.00118909,43262.0,43261.0,1.14084204]
[1642697466458,0.00118909,43262.0,43261.0,0.74084204]
[1642697466662,0.00118909,43262.0,43261.0,0.55008204]
[1642697468008,2.75318477,43268.0,43262.0,0.55]
[1642697468009,1.13762874,43268.0,43262.0,0.55]
[1642697468207,1.13762874,43268.0,43262.0,0.55008204]
[1642697468409,8.595e-05,43267.0,43262.0,0.55008204]
[1642697468810,6.876e-05,43266.0,43262.0,0.55008204]
[1642697469008,0.057785,43265.0,43263.0,0.29204108]
[1642697469212,0.115574,43265.0,43263.0,0.29212312]
[1642697469408,0.115574,43265.0,43264.0,0.05]
[1642697469608,0.115574,43265.0,43264.0,0.05008204]
[1642697470612,1.13762874,43268.0,43265.0,1.2]
[1642697470818,1.01274363,43268.0,43265.0,1.20008204]
[1642697471012,0.95141609,43268.0,43267.0,1.6]
[1642697471211,0.95141609,43268.0,43267.0,1.65008204]
[1642697471212,0.26211634,43268.0,43267.0,1.65008204]
[1642697471413,0.24830344,43268.0,43267.0,2.30134949]
[1642697471660,0.00436431,43277.0,43268.0,1.2]
[1642697471869,0.41936431,43280.0,43272.0,1.422]
[1642697472062,0.41295451,43280.0,43273.0,1.2]
[1642697472263,0.41295451,43280.0,43279.0,0.05]
[1642697472465,0.41295451,43280.0,43279.0,0.25]
[1642697472662,0.41305765,43280.0,43279.0,0.98145441]
[1642697472864,0.29785765,43280.0,43279.0,1.53145441]
[1642697473061,0.29785765,43280.0,43279.0,0.78145441]
[1642697475703,0.29785765,43280.0,43279.0,1.28145441]
[1642697477708,0.29785765,43280.0,43279.0,1.38145441]
[1642697480180,0.29785765,43280.0,43279.0,0.98145441]
[1642697480378,0.29785765,43280.0,43279.0,0.88145441]
[1642697481281,0.29785765,43280.0,43269.0,0.27221858]
[1642697481481,0.057768,43279.0,43276.0,8.202e-05]
[1642697481680,0.05785395,43279.0,43276.0,8.202e-05]
[1642697481880,0.29775451,43280.0,43276.0,0.20008202]
[1642697481881,6.876e-05,43278.0,43276.0,0.20008202]
[1642697482079,6.876e-05,43278.0,43277.0,1.11922315]
[1642697482282,8.595e-05,43279.0,43277.0,1.31922315]
[1642697482479,6.876e-05,43278.0,43277.0,1.41922315]
[1642697482680,6.876e-05,43278.0,43277.0,0.62088169]
[1642697483109,6.876e-05,43278.0,43277.0,0.53639669]
[1642697483506,6.876e-05,43278.0,43277.0,0.27088169]
[1642697483706,6.876e-05,43278.0,43276.0,0.40008202]
[1642697483909,6.876e-05,43278.0,43276.0,0.50008202]
[1642697484812,6.876e-05,43278.0,43276.0,0.80297927]
[1642697485008,6.876e-05,43278.0,43277.0,1.3096121]
[1642697485209,6.876e-05,43278.0,43277.0,1.3673691]
[1642697485410,0.36177207,43288.0,43279.0,1.4]
[1642697485411,0.00420313,43288.0,43279.0,1.4]
[1642697485628,0.00420313,43288.0,43281.0,0.2]
[1642697485810,0.00010314,43284.0,43283.0,1.4]
[1642697486009,0.00420313,43288.0,43284.0,1.4]
[1642697486210,0.00124022,43295.0,43286.0,0.2]
[1642697486412,0.00124022,43295.0,43294.0,1.46582966]
[1642697486862,0.00124022,43295.0,43294.0,1.53279941]
[1642697487060,0.00124022,43295.0,43294.0,1.61582966]
[1642697487262,0.00124022,43295.0,43294.0,1.67357066]
[1642697488659,0.00124022,43295.0,43294.0,2.07357066]
[1642697488859,0.00124022,43295.0,43294.0,1.67357066]
[1642697490906,0.00124022,43295.0,43294.0,1.87357066]
[1642697491308,0.00124022,43295.0,43294.0,1.07357066]
[1642697492209,0.00124022,43295.0,43294.0,0.87357066]
[1642697492408,0.00124022,43295.0,43294.0,0.39072487]
[1642697493008,0.00124022,43295.0,43294.0,0.057741]
[1642697493210,0.00124022,43295.0,43292.0,0.115476]
[1642697493409,0.05898722,43295.0,43288.0,0.115489]
[1642697493609,0.05898722,43295.0,43290.0,0.5]
[1642697493610,0.00017191,43294.0,43290.0,0.5]
[1642697494010,0.00015472,43293.0,43290.0,0.5]
[1642697494452,0.00013753,43292.0,43291.0,1.257744]
[1642697495053,0.00013753,43292.0,43291.0,0.057744]
[1642697495256,0.00013753,43292.0,43291.0,0.37587746]
[1642697496052,0.00013753,43292.0,43291.0,0.6434828]
[1642697496653,0.00013753,43292.0,43291.0,0.32534934]
[1642697497656,0.00013753,43292.0,43291.0,0.94204974]
[1642697497917,0.00013753,43292.0,43291.0,1.09204974]
[1642697498707,0.00013753,43292.0,43291.0,1.09925424]
[1642697498909,0.00013753,43292.0,43291.0,1.09204974]
[1642697499411,0.00013753,43292.0,43291.0,0.64204974]
[1642697499610,0.00013753,43292.0,43291.0,1.14204974]
[1642697500210,0.00013753,43292.0,43291.0,0.64204974]
[1642697500514,0.00013753,43292.0,43291.0,0.63416859]
[1642697500710,0.00013753,43292.0,43291.0,1.23416859]
[1642697501510,0.00013753,43292.0,43291.0,1.23339722]
[1642697502156,0.00013753,43292.0,43291.0,0.9744444]
[1642697502357,0.00013753,43292.0,43291.0,1.23318349]
[1642697502659,0.00013753,43292.0,43291.0,0.9744444]
[1642697503062,0.00013753,43292.0,43291.0,1.23836647]
[1642697503459,0.00013753,43292.0,43291.0,0.9744444]
[1642697503659,0.00013753,43292.0,43291.0,0.707744]
[1642697504061,0.0339545,43297.0,43292.0,0.6]
[1642697504261,0.0339545,43297.0,43291.0,0.057744]
[1642697504461,6.876e-05,43296.0,43291.0,0.057744]
[1642697504662,0.2873053,43292.0,43291.0,0.057744]
[1642697504862,6.876e-05,43296.0,43290.0,0.4]
[1642697505727,0.27924672,43295.0,43290.0,0.4]
[1642697508127,0.26846875,43293.0,43290.0,0.4]
[1642697509568,0.26846875,43293.0,43290.0,0.40623652]
[1642697509768,0.26846875,43293.0,43290.0,0.4]
[1642697510168,0.26846875,43293.0,43290.0,0.40539363]
[1642697510368,0.26846875,43293.0,43290.0,0.4]
[1642697510770,0.26846875,43293.0,43290.0,0.40526647]
[1642697510973,0.26846875,43293.0,43290.0,0.4]
[1642697511371,0.057749,43293.0,43290.0,0.40641715]
[1642697511573,0.057749,43293.0,43290.0,0.4]
[1642697511973,0.057749,43293.0,43290.0,0.40789307]
[1642697512173,0.057749,43293.0,43290.0,0.4]
[1642697512576,0.057749,43293.0,43290.0,0.40785383]
[1642697512779,0.057749,43293.0,43290.0,0.4]
[1642697513214,0.057749,43293.0,43290.0,0.40707354]
[1642697513517,0.057749,43293.0,43290.0,0.40721985]
[1642697513715,0.057749,43293.0,43290.0,0.4]
[1642697514015,0.057749,43293.0,43290.0,0.40647065]
[1642697514214,0.057749,43293.0,43290.0,0.400082]
[1642697514615,0.057749,43293.0,43290.0,0.40550736]
[1642697514915,0.28712809,43292.0,43290.0,0.400082]
[1642697515115,0.28712809,43292.0,43290.0,0.40646253]
[1642697515315,0.28712809,43292.0,43290.0,0.400082]
[1642697515915,0.28712809,43292.0,43290.0,0.40536489]
[1642697516121,0.28712809,43292.0,43290.0,0.400082]
[1642697516516,0.28712809,43292.0,43290.0,0.40659677]
[1642697516753,0.28712809,43292.0,43290.0,0.400082]
[1642697517152,0.28712809,43292.0,43290.0,0.40729395]
[1642697517353,0.28712809,43292.0,43290.0,0.400082]
[1642697517754,0.28712809,43292.0,43290.0,0.40757983]
[1642697517956,0.33712809,43292.0,43290.0,0.400082]
[1642697518957,0.33712809,43292.0,43290.0,0.40755659]
[1642697519156,0.33712809,43292.0,43290.0,0.400082]
[1642697519557,0.33712809,43292.0,43290.0,0.4079636]
[1642697519757,0.33712809,43292.0,43290.0,0.400082]
[1642697520158,0.33712809,43292.0,43290.0,0.4063826]
[1642697520398,0.33712809,43292.0,43290.0,0.400082]
[1642697521002,0.33712809,43292.0,43290.0,0.40757348]
[1642697521200,0.33712809,43292.0,43290.0,0.400082]
[1642697521406,0.48852681,43291.0,43290.0,8.2e-05]
[1642697521802,0.51038909,43292.0,43288.0,0.00031502]
[1642697522002,0.0012657,43291.0,43288.0,0.00039701]
[1642697522504,0.0012657,43291.0,43288.0,8.199e-05]
[1642697523703,0.41069511,43291.0,43288.0,8.199e-05]
[1642697523908,0.05,43290.0,43288.0,8.199e-05]
[1642697524555,0.223294,43290.0,43288.0,8.199e-05]
[1642697525755,0.28385758,43289.0,43286.0,0.00118848]
[1642697525958,0.34162158,43289.0,43284.0,2.12780574]
[1642697526157,0.34162158,43289.0,43287.0,8.595e-05]
[1642697526358,0.057764,43289.0,43286.0,0.00118848]
[1642697526562,0.057764,43289.0,43287.0,8.595e-05]
[1642697527560,0.057764,43289.0,43286.0,0.00118846]
[1642697528007,0.057764,43289.0,43287.0,8.595e-05]
[1642697528805,0.057764,43289.0,43285.0,0.00118847]
[1642697529007,0.2838,43292.0,43287.0,0.057752]
[1642697529008,0.341546,43292.0,43287.0,0.057752]
[1642697529208,0.057746,43292.0,43287.0,0.057752]
[1642697529407,0.037746,43292.0,43288.0,6.876e-05]
[1642697529606,0.037746,43292.0,43288.0,0.0056303]
[1642697529804,0.037746,43292.0,43290.0,0.30012241]
[1642697530808,0.037746,43292.0,43291.0,0.25593408]
[1642697531007,0.037746,43292.0,43290.0,0.30012241]
[1642697531207,0.037746,43292.0,43289.0,0.00707981]
[1642697531408,0.037746,43292.0,43290.0,0.00500513]
[1642697531655,0.037746,43292.0,43290.0,0.31579928]
[1642697531862,0.037746,43292.0,43290.0,0.0635532]
[1642697532057,0.165494,43295.0,43290.0,0.057743]
[1642697532058,0.05,43295.0,43290.0,0.057743]
[1642697532260,0.00101074,43293.0,43290.0,0.31941666]
[1642697532458,0.00101074,43293.0,43290.0,0.31349174]
[1642697532657,0.00101074,43293.0,43290.0,0.32116629]
[1642697532857,0.00101074,43293.0,43290.0,0.07471275]
[1642697533058,0.00101074,43293.0,43291.0,0.1799]
[1642697533259,0.05780976,43296.0,43292.0,0.90574874]
[1642697533458,0.00101075,43294.0,43291.0,0.2299]
[1642697533657,0.00101075,43294.0,43291.0,0.2249]
[1642697534259,0.00101075,43294.0,43291.0,0.1799]
[1642697534463,0.10780976,43296.0,43291.0,0.1799]
[1642697534661,0.00048963,43295.0,43291.0,0.1799]
[1642697535422,0.31594395,43292.0,43291.0,0.1799]
[1642697535626,0.36594395,43292.0,43291.0,0.1799]
[1642697536023,0.36594395,43292.0,43291.0,0.1512398]
[1642697538628,0.36566596,43292.0,43291.0,0.1512398]
[1642697548661,0.64422357,43292.0,43291.0,0.1512398]
[1642697548860,0.36566596,43292.0,43291.0,0.1512398]
[1642697549460,0.057762,43291.0,43288.0,6.876e-05]
[1642697549663,0.115524,43291.0,43288.0,6.876e-05]
[1642697549863,1.315524,43291.0,43280.0,0.002]
[1642697550067,0.115532,43288.0,43280.0,0.002]
[1642697550262,0.228522,43288.0,43281.0,8.596e-05]
[1642697550513,0.32879006,43283.0,43281.0,8.596e-05]
[1642697550707,0.38656206,43283.0,43281.0,8.596e-05]
[1642697551008,0.43656206,43283.0,43281.0,8.596e-05]
[1642697553308,0.107772,43283.0,43281.0,8.596e-05]
[1642697556458,0.10749398,43283.0,43281.0,8.596e-05]
[1642697558308,0.10749398,43283.0,43282.0,0.00553427]
[1642697558509,0.10749398,43283.0,43281.0,8.596e-05]
[1642697558710,0.10749398,43283.0,43282.0,6.877e-05]
[1642697560916,0.05749398,43283.0,43282.0,6.877e-05]
[1642697561115,0.057749,43287.0,43281.0,0.16057477]
[1642697561313,0.057749,43287.0,43282.0,0.01703852]
[1642697561513,6.877e-05,43286.0,43282.0,0.60599902]
[1642697561786,6.877e-05,43286.0,43283.0,0.11629733]
[1642697561984,6.877e-05,43286.0,43285.0,1.25135053]
[1642697562888,6.877e-05,43286.0,43285.0,1.50135053]
[1642697563090,6.877e-05,43286.0,43285.0,1.36764023]
[1642697563286,6.877e-05,43286.0,43285.0,1.25135053]
[1642697563685,6.877e-05,43286.0,43285.0,1.26832028]
[1642697564287,6.877e-05,43286.0,43285.0,1.25135053]
[1642697564788,6.877e-05,43286.0,43285.0,0.95]
[1642697565619,6.877e-05,43286.0,43284.0,0.01696975]
[1642697568615,6.877e-05,43286.0,43284.0,0.02369073]
[1642697569015,6.877e-05,43286.0,43284.0,0.02364882]
[1642697569255,6.877e-05,43286.0,43284.0,0.02248764]
[1642697569458,6.877e-05,43286.0,43284.0,0.01696975]
[1642697569756,6.877e-05,43286.0,43284.0,0.0236076]
[1642697569957,6.877e-05,43286.0,43284.0,0.02381796]
[1642697570258,6.877e-05,43286.0,43284.0,0.02223011]
[1642697570458,6.877e-05,43286.0,43284.0,0.01696975]
[1642697574208,6.877e-05,43286.0,43284.0,0.21696975]
[1642697575010,0.0575437,43289.0,43285.0,1.2]
[1642697575211,0.0575437,43289.0,43286.0,0.115494]
[1642697575411,0.0575437,43289.0,43286.0,0.44910811]
[1642697577061,0.0575437,43289.0,43286.0,0.115494]
[1642697577461,0.0575437,43289.0,43285.0,0.11651796]
[1642697577663,0.0575437,43289.0,43285.0,0.115495]
[1642697577863,0.0500437,43289.0,43285.0,0.11651796]
[1642697578864,0.0500437,43289.0,43284.0,0.01696975]
[1642697579065,0.03038262,43289.0,43285.0,0.00102282]
[1642697580167,0.03038262,43289.0,43285.0,0.05877582]
[1642697580608,0.03038262,43289.0,43285.0,0.00102282]
[1642697580809,0.31069977,43289.0,43285.0,0.00102282]
[1642697581010,0.03038262,43289.0,43285.0,0.00102282]
[1642697581215,0.03038262,43289.0,43284.0,0.02336231]
[1642697581510,0.03038262,43289.0,43286.0,0.25772639]
[1642697581708,0.03038262,43289.0,43286.0,0.26391614]
[1642697581910,0.03038262,43289.0,43287.0,0.00764165]
[1642697582110,0.03038262,43289.0,43286.0,0.25772639]
[1642697582709,0.028807,43289.0,43286.0,0.25874922]
[1642697582911,0.028807,43289.0,43286.0,0.00102283]
[1642697583714,0.028807,43289.0,43285.0,0.057754]
[1642697583911,0.028807,43289.0,43285.0,0.05877685]
[1642697584760,0.028807,43289.0,43285.0,0.057754]
[1642697585163,0.028807,43289.0,43285.0,0.05877687]
[1642697586165,0.028807,43289.0,43285.0,0.057754]
[1642697586365,0.028807,43289.0,43285.0,0.05877686]
[1642697586661,0.028807,43289.0,43285.0,0.00102286]
[1642697587061,0.086567,43289.0,43285.0,0.00102286]
[1642697587261,0.086567,43289.0,43284.0,0.01696975]
[1642697587464,0.086567,43289.0,43285.0,0.00102286]
[1642697588410,0.086567,43289.0,43284.0,0.01696975]
[1642697588608,0.086567,43289.0,43285.0,0.00102286]
[1642697589611,0.086567,43289.0,43284.0,0.01696975]
[1642697589812,0.086567,43289.0,43285.0,0.00102286]
[1642697590013,0.028807,43289.0,43285.0,0.05877686]
[1642697590811,0.028807,43289.0,43285.0,0.057754]
[1642697591012,0.028807,43289.0,43285.0,0.05877686]
[1642697591663,0.028807,43289.0,43285.0,0.05869881]
[1642697592062,0.028807,43289.0,43285.0,0.05767595]
[1642697592261,0.028807,43289.0,43285.0,0.06604928]
[1642697592462,0.028807,43289.0,43286.0,0.00613636]
[1642697592664,0.028807,43289.0,43287.0,0.00784911]
[1642697592860,0.02852896,43289.0,43285.0,0.05869881]
[1642697593261,0.02852896,43289.0,43285.0,0.06549575]
[1642697593461,0.02852896,43289.0,43286.0,0.00629074]
[1642697593661,0.02852896,43289.0,43287.0,0.00567105]